bitfinex/quotes_SOLUSD_20260118
["timestamp","ask_amount","ask_price","bid_price","bid_amount"]
[1768762885053,11.42811943,142.96,142.92,2.31913359]
[1768762886565,9.32283247,142.95,142.92,2.31913359]
[1768762891487,2.32737342,142.94,142.91,2.31913359]
[1768762891982,4.43291699,142.94,142.91,2.31913359]
[1768762893584,2.10554357,142.93,142.9,65.11913359]
[1768762894285,2.10554357,142.93,142.9,2.31913359]
[1768762895474,2.32737342,142.92,142.89,9.31735714]
[1768762895681,2.26737343,142.92,142.89,9.31735714]
[1768762896075,2.10554357,142.93,142.89,9.31735714]
[1768762896785,2.10554357,142.93,142.9,2.31913359]
[1768762896984,9.10201209,142.93,142.9,2.31913359]
[1768762897688,11.59546933,142.93,142.9,2.31913359]
[1768762897982,11.53546934,142.93,142.9,2.31913359]
[1768762898772,2.10554357,142.92,142.9,2.31913359]
[1768762900988,2.10554357,142.92,142.9,9.31694796]
[1768762901480,4.59900081,142.93,142.9,9.31694796]
[1768762904468,4.53900082,142.93,142.9,9.31694796]
[1768762904788,2.10554357,142.94,142.91,2.42317473]
[1768762905170,6.99562247,142.95,142.91,2.42317473]
[1768762905385,2.10554357,142.94,142.91,2.42317473]
[1768762905593,9.10116604,142.95,142.91,2.42317473]
[1768762905784,2.10554357,142.94,142.91,2.42317473]
[1768762906088,24.48237268,142.96,142.91,2.42317473]
[1768762906293,2.10554357,142.94,142.91,2.42317473]
[1768762906592,4.59900081,142.94,142.91,2.42317473]
[1768762907092,11.59497039,142.94,142.91,2.42317473]
[1768762908192,11.09497039,142.94,142.91,2.42317473]
[1768762908874,17.48740906,142.96,142.91,2.42317473]
[1768762909066,2.10639715,142.94,142.91,2.42317473]
[1768762910092,1.60639715,142.94,142.91,2.42317473]
[1768762910478,2.10639715,142.94,142.91,2.42317473]
[1768762911199,7.53220602,142.95,142.91,2.42317473]
[1768762911376,2.10639715,142.94,142.91,2.42317473]
[1768762913904,9.10239773,142.94,142.91,2.42317473]
[1768762915297,7.55212056,142.95,142.92,2.45900114]
[1768762915505,2.10639715,142.95,142.92,2.45900114]
[1768762916593,2.10639715,142.96,142.92,2.45900114]
[1768762917103,2.10639715,142.97,142.93,2.45900114]
[1768762917300,2.10639715,142.97,142.94,2.45900114]
[1768762917707,9.10056985,142.98,142.94,2.45900114]
[1768762918501,9.70038161,142.98,142.94,2.45900114]
[1768762918909,9.70038161,142.98,142.94,9.45491855]
[1768762921416,9.70038161,142.98,142.95,2.45900114]
[1768762922621,7.59398446,142.98,142.95,2.45900114]
[1768762922825,9.70038161,142.98,142.95,2.45900114]
[1768762924510,9.10056985,142.98,142.95,2.45900114]
[1768762925418,6.9941727,142.98,142.95,2.45900114]
[1768762925619,9.10056985,142.98,142.95,2.45900114]
[1768762926634,2.76027439,142.97,142.94,2.45900114]
[1768762926810,2.10639715,142.96,142.94,2.45900114]
[1768762928628,7.64853524,142.97,142.94,2.45900114]
[1768762929033,2.10639715,142.96,142.94,2.45900114]
[1768762931610,7.64853524,142.97,142.94,2.45900114]
[1768762931810,2.10639715,142.96,142.94,2.45900114]
[1768762936439,22.96853524,142.97,142.94,2.45900114]
[1768762936745,2.10639715,142.96,142.94,2.45900114]
[1768762937932,22.314658,142.97,142.94,2.45900114]
[1768762938320,2.10639715,142.96,142.94,2.45900114]
[1768762938525,2.83255682,142.96,142.93,9.45540984]
[1768762939031,9.82762668,142.96,142.93,2.45900114]
[1768762939634,9.82762668,142.96,142.92,9.45574811]
[1768762940232,2.10639715,142.95,142.91,9.45641209]
[1768762940537,0.06,142.95,142.92,2.45900114]
[1768762940712,2.10639715,142.95,142.92,2.45900114]
[1768762940911,6.99506986,142.96,142.92,2.45900114]
[1768762941112,2.10639715,142.95,142.92,2.45900114]
[1768762941338,6.99506986,142.96,142.92,2.45900114]
[1768762941536,2.10639715,142.95,142.92,2.45900114]
[1768762941745,2.10639715,142.95,142.92,9.45589159]
[1768762941922,1e-08,142.95,142.92,9.45589159]
[1768762944054,7.01676927,142.96,142.93,2.58972239]
[1768762944249,1e-08,142.95,142.93,2.58972239]
[1768762947033,1e-08,142.96,142.93,2.58972239]
[1768762947228,1e-08,142.95,142.93,2.58972239]
[1768762947630,1e-08,142.96,142.93,2.58972239]
[1768762947929,1e-08,142.95,142.93,2.58972239]
[1768762948143,1e-08,142.96,142.93,2.58972239]
[1768762948341,2.10639715,142.96,142.93,2.58972239]
[1768762948548,1e-08,142.96,142.93,2.58972239]
[1768762949051,0.02957824,142.96,142.93,2.58972239]
[1768762949253,2.10639715,142.96,142.93,2.58972239]
[1768762949446,0.00401662,142.96,142.93,2.58972239]
[1768762949634,2.10639715,142.96,142.93,2.58972239]
[1768762949833,0.00401163,142.96,142.93,2.58972239]
[1768762950554,6.99908149,142.96,142.93,2.58972239]
[1768762950746,2.10639715,142.96,142.93,2.58972239]
[1768762950947,2.10639715,142.96,142.94,2.58972239]
[1768762951762,1e-08,142.96,142.94,2.58972239]
[1768762953674,0.00035779,142.96,142.94,2.58972239]
[1768762955468,17.44906814,142.97,142.94,2.58972239]
[1768762955642,2.10639715,142.96,142.94,2.58972239]
[1768762956048,15.34267099,142.97,142.94,2.58972239]
[1768762956249,2.10639715,142.96,142.94,2.58972239]
[1768762956548,1e-08,142.96,142.94,2.58972239]
[1768762956969,15.34267099,142.97,142.94,2.58972239]
[1768762956970,17.44906814,142.97,142.94,2.58972239]
[1768762957353,17.44906814,142.97,142.93,2.68957951]
[1768762957550,6.99506986,142.96,142.93,2.68957951]
[1768762958376,9.14556419,142.96,142.93,2.68957951]
[1768762962081,6.99506986,142.96,142.93,2.68957951]
[1768762967990,9.18487637,142.96,142.93,2.68957951]
[1768762968291,6.99506986,142.96,142.93,2.68957951]
[1768762972096,9.10070306,142.96,142.93,2.68957951]
[1768762975305,6.99506986,142.96,142.93,2.68957951]
[1768762980109,6.99506986,142.96,142.93,2.5912297]
[1768762980110,0.00035378,142.96,142.93,2.5912297]
[1768762980311,0.12817448,142.95,142.91,9.58846709]
[1768762981196,2.23380768,142.95,142.91,9.58846709]
[1768762981396,9.22927922,142.95,142.91,2.5912297]
[1768762982717,9.22927922,142.95,142.91,9.58860523]
[1768762983910,7.12364602,142.95,142.91,9.58860523]
[1768762984117,9.22927922,142.95,142.91,9.58860523]
[1768762985109,2.24931241,142.94,142.91,2.5912297]
[1768762985510,0.14367921,142.94,142.91,2.5912297]
[1768762985706,2.24931241,142.94,142.91,2.5912297]
[1768762987212,9.2456971,142.94,142.91,2.5912297]
[1768762990821,2.26677375,142.93,142.9,2.5912297]
[1768762991206,0.16114055,142.93,142.9,2.5912297]
[1768762991410,2.26677375,142.93,142.9,2.5912297]
[1768762991917,9.26343531,142.93,142.9,2.5912297]
[1768762992113,6.99666156,142.93,142.9,2.5912297]
[1768762992337,9.10229476,142.93,142.9,2.5912297]
[1768762992997,6.99666156,142.93,142.9,2.5912297]
[1768762993506,22.3161393,142.94,142.91,2.5912297]
[1768762993697,15.32,142.94,142.91,2.5912297]
[1768762993897,6.99586978,142.95,142.92,2.5912297]
[1768762994215,6.99551194,142.96,142.93,2.5912297]
[1768762995233,6.99551194,142.96,142.91,6.99737407]
[1768762995234,9.10114514,142.96,142.91,71.90300727]
[1768762997325,9.10114514,142.96,142.92,2.5912297]
[1768762998602,9.10117741,142.95,142.92,2.5912297]
[1768762999109,6.99554421,142.95,142.92,2.5912297]
[1768763000932,9.10117741,142.95,142.92,2.5912297]
[1768763002619,2.51065361,142.94,142.91,62.8]
[1768763002824,9.50672909,142.94,142.91,65.56132835]
[1768763003018,11.61236229,142.94,142.91,65.56132835]
[1768763005943,6.99561404,142.95,142.92,2.76132835]
[1768763006915,6.99549713,142.96,142.92,2.76132835]
[1768763008712,9.10113033,142.96,142.92,2.76132835]
[1768763009534,6.99549713,142.96,142.93,2.76132835]
[1768763012343,9.10113033,142.96,142.93,2.76132835]
[1768763015849,6.99549713,142.96,142.93,2.76132835]
[1768763016035,9.10113033,142.96,142.93,2.76132835]
[1768763017750,6.99549713,142.96,142.93,2.76132835]
[1768763017942,9.10113033,142.96,142.93,2.76132835]
[1768763021150,6.99549713,142.96,142.93,2.76132835]
[1768763021460,9.10113033,142.96,142.93,2.76132835]
[1768763023554,6.99549713,142.96,142.93,2.76132835]
[1768763023753,9.10113033,142.96,142.93,2.76132835]
[1768763027461,4.78477076,142.96,142.93,2.76132835]
[1768763029770,9.67423673,142.95,142.92,65.44654036]
[1768763030247,6.99545295,142.95,142.93,2.64654036]
[1768763038581,2.67913756,142.96,142.93,2.64654036]
[1768763038582,6.99553365,142.96,142.94,2.65380998]
[1768763042483,34.96687095,143.0,142.94,2.65380998]
[1768763042484,0.56473684,143.05,142.94,110.58524963]
[1768763042684,17.21769968,143.11,143.05,3.65030836]
[1768763043056,17.21769968,143.11,143.07,2.10597023]
[1768763043380,1.89769968,143.11,143.09,2.10597023]
[1768763043565,15.32,143.1,143.06,2.10597023]
[1768763044287,1.89769968,143.11,143.08,2.10597023]
[1768763044288,15.32,143.11,143.08,2.10597023]
[1768763044483,15.32,143.11,143.08,9.09465015]
[1768763044955,34.91924443,143.19,143.08,9.6424899]
[1768763045162,34.91924443,143.19,143.1,2.65380998]
[1768763045356,2.10597023,143.15,143.1,2.65380998]
[1768763045570,15.32,143.14,143.1,2.65380998]
[1768763046167,17.42597023,143.14,143.1,9.64181638]
[1768763046584,15.32,143.14,143.1,9.64181638]
[1768763046769,17.42597023,143.14,143.1,9.64181638]
[1768763047074,20.22109328,143.14,143.1,9.64181638]
[1768763047886,20.22109328,143.13,143.09,9.6423167]
[1768763049878,2.10597023,143.12,143.09,9.6423167]
[1768763050193,2.10597023,143.1,143.07,9.64291982]
[1768763050369,2.10597023,143.1,143.08,6.98908716]
[1768763051587,17.42597023,143.1,143.08,2.65380998]
[1768763052185,2.10597023,143.1,143.08,2.65380998]
[1768763052382,15.32,143.1,143.08,2.65380998]
[1768763052589,17.42597023,143.1,143.08,2.65380998]
[1768763052884,15.32,143.1,143.08,9.64282506]
[1768763053098,15.32,143.1,143.09,2.65380998]
[1768763053267,12.32748922,143.1,143.09,2.65380998]
[1768763053666,15.32,143.11,143.09,2.65380998]
[1768763054791,17.42597023,143.11,143.09,6.98856774]
[1768763055085,15.32,143.1,143.09,6.98856774]
[1768763056497,20.22109328,143.12,143.09,6.98856774]
[1768763056671,20.22109328,143.12,143.08,7.06326589]
[1768763058385,2.79512305,143.12,143.08,7.06326589]
[1768763058587,4.90109328,143.12,143.08,7.06326589]
[1768763061088,2.79512305,143.12,143.08,0.07416889]
[1768763061291,4.90109328,143.12,143.08,0.07416889]
[1768763062484,6.98129014,143.24,143.12,0.03142088]
[1768763062664,6.98129014,143.24,143.08,36.82005879]
[1768763062665,15.3,143.23,143.15,0.03142088]
[1768763062867,2.10597023,143.2,143.15,0.03142088]
[1768763063164,15.3,143.19,143.15,0.03142088]
[1768763063368,15.3,143.19,143.15,2.13739111]
[1768763063797,15.3,143.19,143.15,0.03142088]
[1768763063968,15.3,143.19,143.15,2.13739111]
[1768763064366,2.93458583,143.22,143.16,6.98519139]
[1768763064672,5.04055606,143.2,143.16,6.98519139]
[1768763065096,2.93458583,143.2,143.16,6.98519139]
[1768763065488,18.23458583,143.2,143.16,6.98519139]
[1768763066397,20.34055606,143.2,143.16,7.10872601]
[1768763066584,18.23458583,143.2,143.16,7.10872601]
[1768763066784,20.34055606,143.2,143.16,7.10872601]
[1768763067091,18.23458583,143.2,143.16,7.10872601]
[1768763067990,20.34055606,143.2,143.16,7.10872601]
[1768763068390,20.34055606,143.2,143.16,69.90872601]
[1768763068588,2.93458583,143.2,143.16,69.90872601]
[1768763068793,15.3,143.19,143.16,69.90872601]
[1768763072906,15.3,143.18,143.16,69.90872601]
[1768763075297,2.93458583,143.2,143.18,2.95643618]
[1768763075482,15.3,143.19,143.18,2.95643618]
[1768763080803,15.3,143.19,143.16,70.19449398]
[1768763081714,15.3,143.18,143.16,70.19449398]
[1768763082828,3.0263644,143.2,143.16,70.19449398]
[1768763083019,15.3,143.17,143.16,70.19449398]
[1768763083222,15.3,143.18,143.16,70.19449398]
[1768763084133,3.0263644,143.22,143.19,0.52448802]
[1768763084307,18.3263644,143.21,143.18,62.8]
[1768763084510,18.3263644,143.21,143.18,64.90597023]
[1768763085236,25.30920743,143.21,143.18,64.90597023]
[1768763085414,25.30920743,143.21,143.17,6.98447369]
[1768763085415,25.30920743,143.21,143.17,2.10597023]
[1768763085611,3.0263644,143.2,143.17,2.10597023]
[1768763086224,3.0263644,143.2,143.16,70.31618787]
[1768763086426,3.0263644,143.2,143.17,2.10597023]
[1768763086834,3.0263644,143.2,143.17,9.63979495]
[1768763088443,3.0263644,143.2,143.17,7.53382472]
[1768763089538,25.30920743,143.21,143.17,9.63979495]
[1768763089748,3.0263644,143.21,143.17,9.63979495]
[1768763091147,3.0263644,143.21,143.18,0.61911032]
[1768763091846,3.0263644,143.21,143.18,63.41911032]
[1768763092145,3.0263644,143.21,143.18,70.40329637]
[1768763093039,10.00922618,143.21,143.18,0.61911032]
[1768763093244,3.0263644,143.21,143.18,0.61911032]
[1768763093749,3.0263644,143.21,143.18,7.60330951]
[1768763098626,3.16092718,143.23,143.19,0.76507288]
[1768763099446,3.16092718,143.22,143.19,0.76507288]
[1768763100765,3.7,143.25,143.21,2.09810352]
[1768763100969,3.16092718,143.24,143.19,36.98369859]
[1768763101261,3.7,143.25,143.21,2.09810352]
[1768763101772,3.7,143.25,143.23,2.09810352]
[1768763102348,3.7,143.25,143.22,2.09810352]
[1768763102652,3.16092718,143.24,143.21,0.02973132]
[1768763102852,3.16092718,143.21,143.19,0.02973132]
[1768763103168,2.09810352,143.24,143.19,7.01344982]
[1768763103368,25.98086475,143.25,143.21,2.09810352]
[1768763103665,25.98086475,143.25,143.2,0.42210876]
[1768763103666,12.77896827,143.25,143.2,0.42210876]
[1768763103858,12.77896827,143.25,143.19,9.50393078]
[1768763104972,3.16092718,143.23,143.19,9.50393078]
[1768763105161,5.2590307,143.23,143.18,7.42066261]
[1768763105361,3.16092718,143.22,143.18,9.51876613]
[1768763106073,3.16092718,143.22,143.18,7.42066261]
[1768763107062,3.16092718,143.22,143.19,22.5]
[1768763107579,5.2590307,143.22,143.19,22.5]
[1768763107966,12.24131281,143.22,143.19,22.5]
[1768763108777,10.14320929,143.22,143.19,22.5]
[1768763108965,12.24131281,143.22,143.19,22.5]
[1768763109376,10.14320929,143.22,143.19,22.5]
[1768763109859,12.24131281,143.22,143.19,22.5]
[1768763110565,3.16092718,143.2,143.18,62.8]
[1768763110868,3.16092718,143.2,143.17,62.8]
[1768763112682,5.2590307,143.2,143.16,70.2963724]
[1768763113474,10.14422481,143.2,143.16,70.2963724]
[1768763113786,12.24232833,143.2,143.16,70.2963724]
[1768763113962,12.24232833,143.2,143.17,0.54609742]
[1768763115181,12.24232833,143.2,143.16,7.54225118]
[1768763115791,5.2590307,143.2,143.16,7.54225118]
[1768763117489,2.09810352,143.2,143.17,0.59041339]
[1768763117991,2.09810352,143.2,143.16,6.98488205]
[1768763117992,3.16092718,143.19,143.16,6.98488205]
[1768763118293,1.17124985,143.19,143.15,15.3]
[1768763118484,1.17124985,143.19,143.15,3.34771488]
[1768763118691,2.09810352,143.18,143.15,3.34771488]
[1768763119799,2.09810352,143.18,143.16,3.34771488]
[1768763120389,25.6234523,143.2,143.15,3.34771488]
[1768763120390,8.17650743,143.19,143.15,3.34771488]
[1768763120570,2.09810352,143.18,143.15,3.34771488]
[1768763120773,8.17650743,143.19,143.15,3.34771488]
[1768763120974,2.09810352,143.18,143.15,3.34771488]
[1768763121198,8.17650743,143.19,143.15,3.34771488]
[1768763121495,2.09810352,143.18,143.15,3.34771488]
[1768763122071,8.17650743,143.19,143.15,3.34771488]
[1768763122273,2.09810352,143.18,143.15,3.34771488]
[1768763124492,2.09810352,143.18,143.15,6.98554516]
[1768763124699,3.35207198,143.18,143.15,10.39406024]
[1768763124997,2.09810352,143.18,143.16,3.40851508]
[1768763126086,2.09810352,143.17,143.13,3.40851508]
[1768763126402,2.03810353,143.16,143.14,3.40851508]
[1768763127394,3.31158448,143.16,143.13,10.39474544]
[1768763127593,2.09810352,143.15,143.13,10.39474544]
[1768763127896,2.03810353,143.15,143.13,10.39474544]
[1768763128476,1.27348095,143.16,143.13,10.39474544]
[1768763128700,2.09810352,143.16,143.13,10.39474544]
[1768763130909,3.40928261,143.15,143.12,10.39565873]
[1768763131715,3.34928262,143.15,143.12,10.39565873]
[1768763132215,2.09810352,143.14,143.12,10.39565873]
[1768763132806,2.09810352,143.14,143.11,73.19597986]
[1768763133006,6.98537837,143.16,143.11,73.19597986]
[1768763133808,1.27833126,143.15,143.11,73.19597986]
[1768763134014,1.27833126,143.15,143.13,2.09810352]
[1768763134218,1.27833126,143.15,143.11,66.20851508]
[1768763134397,1.27833126,143.15,143.11,3.40851508]
[1768763134722,8.26410508,143.15,143.11,3.40851508]
[1768763135726,1.29591689,143.14,143.11,3.40851508]
[1768763138122,1.29591689,143.14,143.1,10.64272562]
[1768763138498,1.29591689,143.14,143.11,3.65477143]
[1768763138695,8.2821018,143.14,143.1,10.64272562]
[1768763139615,1.33826121,143.13,143.1,6.98795419]
[1768763141504,1.33826121,143.13,143.1,3.65477143]
[1768763143642,1.33826121,143.13,143.1,10.64280858]
[1768763143928,1.37048021,143.16,143.11,3.65477143]
[1768763144108,1.37048021,143.18,143.11,3.65477143]
[1768763144308,1.37048021,143.18,143.11,66.45477143]
[1768763144821,1.37048021,143.18,143.12,3.65477143]
[1768763145307,1.378305,143.16,143.12,3.65477143]
[1768763145626,1.378305,143.16,143.11,73.44205921]
[1768763145814,1.378305,143.16,143.11,62.8]
[1768763147526,39.74646223,143.17,143.1,3.65477143]
[1768763147527,1.40124425,143.14,143.1,3.65477143]
[1768763148833,8.39537117,143.13,143.09,3.65477143]
[1768763149052,1.40871569,143.12,143.06,3.65477143]
[1768763150326,1.41610132,143.11,143.07,10.64431807]
[1768763150717,32.76471719,143.15,143.08,3.65477143]
[1768763150917,34.1881193,143.15,143.08,3.65477143]
[1768763151139,1.42340211,143.14,143.08,3.65477143]
[1768763151923,1.43061904,143.13,143.09,6.98860856]
[1768763152245,8.41678642,143.14,143.1,3.65477143]
[1768763160148,6.98616738,143.14,143.1,3.65477143]
[1768763160342,6.98590574,143.15,143.11,3.43484511]
[1768763160734,1.49838279,143.16,143.12,3.43484511]
[1768763160938,1.49838279,143.16,143.1,3.43484511]
[1768763161841,1.49838279,143.16,143.1,3.40484511]
[1768763162358,1.49838279,143.16,143.07,15.3]
[1768763162532,1.49838279,143.16,143.05,17.47587049]
[1768763162533,3.61956819,143.14,143.02,5.34408856]
[1768763162734,15.3,143.15,143.05,6.99044057]
[1768763162735,3.61956819,143.12,143.05,6.99044057]
[1768763163755,6.98763189,143.11,143.05,6.99044057]
[1768763163942,3.61956819,143.1,143.05,6.99044057]
[1768763164456,3.61956819,143.1,143.06,3.43484511]
[1768763166257,10.60790821,143.1,143.06,3.43484511]
[1768763166462,3.61956819,143.09,143.06,3.43484511]
[1768763171872,3.61956819,143.08,143.05,3.43484511]
[1768763173764,3.61956819,143.08,143.05,10.42536178]
[1768763173968,3.61956819,143.08,143.05,3.43484511]
[1768763174163,3.61956819,143.08,143.04,25.72573347]
[1768763174365,3.61956819,143.08,143.05,3.43484511]
[1768763177366,3.61956819,143.07,143.04,18.73484511]
[1768763178065,10.60898518,143.08,143.04,18.73484511]
[1768763178272,3.61956819,143.07,143.04,18.73484511]
[1768763178674,3.61956819,143.07,143.04,3.43484511]
[1768763179274,10.60924573,143.07,143.04,3.43484511]
[1768763180359,3.61956819,143.07,143.04,3.43484511]
[1768763181583,3.61956819,143.06,143.03,3.43484511]
[1768763184988,3.50537176,143.05,143.02,3.58412829]
[1768763185168,3.50537176,143.05,143.02,10.5759747]
[1768763186702,10.49596901,143.05,143.02,3.58412829]
[1768763187113,3.50537176,143.04,143.01,3.58412829]
[1768763187689,10.49596901,143.05,143.01,3.58412829]
[1768763188366,10.49596901,143.05,143.01,10.57661765]
[1768763188566,10.49596901,143.05,143.02,3.58412829]
[1768763189768,3.50537176,143.04,143.01,3.58412829]
[1768763190386,3.50537176,143.04,142.96,7.19483632]
[1768763191178,3.50537176,143.04,142.97,6.99440691]
[1768763191379,3.50537176,143.04,142.96,0.2]
[1768763191605,3.50537176,143.04,142.97,15.32]
[1768763191783,3.50537176,143.04,142.98,24.47815176]
[1768763192299,3.50537176,143.04,142.99,3.58412829]
[1768763192706,3.50537176,143.03,142.99,3.58412829]
[1768763193506,3.50537176,143.03,142.98,10.57811346]
[1768763193712,3.50537176,143.01,142.98,3.58412829]
[1768763195210,3.50537176,143.01,142.98,10.57775331]
[1768763195502,3.50537176,143.02,142.98,10.57775331]
[1768763196807,3.50537176,143.02,142.99,3.57963528]
[1768763199524,3.47358581,143.07,143.01,3.57963528]
[1768763199709,3.47358581,143.06,143.01,3.57963528]
[1768763201614,3.47358581,143.06,143.02,10.57166436]
[1768763216932,3.54850764,143.05,143.02,10.57166436]
[1768763217442,3.54850764,143.05,143.0,66.26632297]
[1768763217607,3.54850764,143.05,143.0,81.58632297]
[1768763217806,3.54850764,143.05,142.99,10.45972068]
[1768763218933,6.99105145,143.04,142.99,10.45972068]
[1768763219135,3.54850764,143.03,142.99,3.46632297]
[1768763221330,3.54850764,143.02,142.99,3.46632297]
[1768763221536,3.54850764,143.02,142.96,3.66632297]
[1768763222528,3.54850764,143.0,142.96,0.2]
[1768763222718,3.48850765,143.0,142.96,0.2]
[1768763224142,3.48850765,143.0,142.94,3.46632297]
[1768763224943,3.54850764,142.98,142.94,3.46632297]
[1768763226020,3.54850764,142.97,142.94,3.46632297]
[1768763226221,3.48850765,142.97,142.94,3.46632297]
[1768763227722,10.48301779,142.97,142.94,3.46632297]
[1768763228041,6.99451014,142.97,142.92,6.99677663]
[1768763228238,3.54850764,142.96,142.92,10.4630996]
[1768763228537,3.54850764,142.96,142.92,3.46632297]
[1768763229940,3.54850764,142.95,142.92,3.46632297]
[1768763230246,3.54850764,142.95,142.92,10.46304483]
[1768763233146,3.54850764,142.97,142.93,3.46632297]
[1768763233833,3.54850764,142.98,142.94,3.46632297]
[1768763234955,3.54850764,142.98,142.93,15.32]
[1768763234956,3.54850764,142.97,142.93,22.31616507]
[1768763235139,3.54850764,142.97,142.92,10.46284042]
[1768763235649,3.54850764,142.97,142.94,3.46632297]
[1768763237155,10.54298772,142.97,142.94,3.46632297]
[1768763238354,10.54298772,142.97,142.93,3.46632297]
[1768763238355,3.54850764,142.96,142.93,3.46632297]
[1768763239053,3.54850764,142.96,142.91,10.66359705]
[1768763239670,3.54850764,142.96,142.91,10.66366551]
[1768763240266,3.54850764,142.96,142.91,0.2]
[1768763240573,3.54850764,142.96,142.91,3.66632297]
[1768763240781,3.54850764,142.94,142.91,3.66632297]
[1768763241279,3.54850764,142.94,142.91,0.2]
[1768763241452,3.54850764,142.94,142.9,15.32]
[1768763241453,3.54850764,142.94,142.9,6.99788568]
[1768763242086,6.99502072,142.96,142.91,6.99737076]
[1768763242385,3.54850764,142.96,142.91,6.99737076]
[1768763242977,3.54850764,142.96,142.9,24.49188594]
[1768763244081,3.54850764,142.96,142.91,3.69437364]
[1768763245677,3.70932638,142.97,142.93,3.69437364]
[1768763247082,3.70932638,142.97,142.93,10.69049344]
[1768763248788,2.12453341,142.96,142.9,3.69437364]
[1768763249284,2.12453341,142.95,142.9,3.69437364]
[1768763250289,2.12453341,142.95,142.91,10.69174531]
[1768763252487,2.12453341,142.95,142.91,6.99737167]
[1768763252789,2.11334314,142.95,142.91,10.69174531]
[1768763257896,9.0778622,142.96,142.92,3.33146368]
[1768763258415,2.08278407,142.95,142.92,3.33146368]
[1768763258598,2.08278407,142.95,142.91,10.32883535]
[1768763262896,2.08278407,142.95,142.92,3.33146368]
[1768763265007,2.08278407,142.95,142.92,10.3283607]
[1768763275605,6.99522404,142.96,142.92,6.99689702]
[1768763275803,1.99051007,142.96,142.93,3.61642649]
[1768763276413,1.99051007,142.99,142.93,3.61642649]
[1768763278289,8.97590879,142.98,142.94,3.61642649]
[1768763283098,6.99398517,142.98,142.95,3.61642649]
[1768763284813,6.99336602,143.0,142.96,3.61642649]
[1768763285916,1.94949468,143.0,142.96,3.61642649]
[1768763286303,1.94949468,143.0,142.97,3.61642649]
[1768763287210,17.4803697,143.02,142.97,3.61642649]
[1768763287211,1.94564776,143.02,142.97,3.61642649]
[1768763288113,6.992518,143.01,142.97,3.61642649]
[1768763290315,20.94719629,143.03,142.98,3.61642649]
[1768763290516,20.94719629,143.03,142.98,3.02243229]
[1768763292020,6.99202908,143.02,142.98,6.99391416]
[1768763292200,6.99167231,143.03,142.98,6.99391416]
[1768763292600,3.4683457,143.04,142.99,3.61642649]
[1768763292798,10.45926164,143.05,142.99,3.61642649]
[1768763293030,10.45926164,143.05,143.0,3.61642649]
[1768763294224,3.4683457,143.04,142.97,3.61642649]
[1768763294524,3.4683457,143.04,142.98,3.61642649]
[1768763296618,10.45988593,143.03,142.99,3.61642649]
[1768763299821,10.45988593,143.03,143.0,3.61642649]
[1768763301932,10.45988593,143.03,143.0,32.95642649]
[1768763304917,3.53017112,143.04,143.01,3.42932773]
[1768763305236,3.53017112,143.04,143.01,3.39932773]
[1768763306812,10.52136198,143.04,143.01,3.39932773]
[1768763309637,10.52136198,143.04,143.01,3.36932773]
[1768763309943,3.53017112,143.03,143.01,3.36932773]
[1768763314155,3.53017112,143.02,143.0,29.34]
[1768763314437,3.53017112,143.02,143.0,24.89059122]
[1768763315231,3.53017112,143.02,142.98,15.32]
[1768763315421,3.53017112,143.02,142.99,3.42932773]
[1768763316539,10.52245445,143.02,142.99,3.42932773]
[1768763316742,1.63956153,143.01,142.97,3.21714389]
[1768763318642,8.63254651,143.01,142.97,3.21714389]
[1768763323254,1.61961221,143.0,142.97,3.21714389]
[1768763326351,8.61280874,143.0,142.97,3.21714389]
[1768763331141,1.59545801,142.99,142.96,3.21714389]
[1768763331857,1.59259269,143.0,142.97,25.1]
[1768763333567,1.59259269,143.0,142.97,28.34261615]
[1768763334164,8.58572445,143.0,142.97,28.34261615]
[1768763335852,19.05906155,143.02,142.98,3.24261615]
[1768763336164,1.57875226,143.01,142.98,3.24261615]
[1768763336865,6.99300699,143.0,142.98,3.24261615]
[1768763340867,8.55869562,143.0,142.97,28.34261615]
[1768763343052,1.56067084,142.99,142.97,25.1]
[1768763344167,1.56067084,142.99,142.96,3.24261615]
[1768763344555,8.55440015,142.99,142.96,3.24261615]
[1768763345874,6.99372931,142.99,142.96,3.24261615]
[1768763355485,8.52446399,142.99,142.96,3.24261615]
[1768763356385,1.53073468,142.98,142.95,3.24261615]
[1768763356582,1.53073468,143.02,142.96,28.35261615]
[1768763357479,1.52861277,143.0,142.96,28.35261615]
[1768763359487,6.99349604,142.99,142.96,28.35261615]
[1768763359677,8.5158882,142.99,142.96,28.35261615]
[1768763359871,8.5158882,142.99,142.96,3.24261615]
[1768763360905,1.52036607,142.98,142.94,3.24261615]
[1768763361069,1.52036607,142.98,142.95,28.35261615]
[1768763362594,1.52036607,142.98,142.95,3.24261615]
[1768763363098,6.99447436,142.97,142.95,3.24261615]
[1768763364497,1.51249178,142.97,142.93,3.21758937]
[1768763365482,6.99496362,142.96,142.93,3.21758937]
[1768763370594,1.49955772,142.96,142.92,3.21758937]
[1768763370800,1.49955772,142.96,142.93,28.32758937]
[1768763371111,1.49955772,142.96,142.93,3.21758937]
[1768763372284,6.99545295,142.95,142.93,3.21758937]